[Event "O2C Doeberl Cup 2019"]
[Site "Canberra"]
[Date "2019.04.18"]
[Round "1.5"]
[White "Ikeda, Junta"]
[Black "Lo, Willis"]
[Result "1-0"]
[ECO "E20"]
[WhiteElo "2441"]
[BlackElo "2072"]
[Annotator "ChessBase"]
[PlyCount "27"]
[EventDate "2019.04.17"]
[EventType "swiss"]
[EventCountry "AUS"]
[SourceTitle "playchess.com"]
[Source "ChessBase"]
[SourceQuality "1"]
[TimeControl "5400+30"]

1. d4 {[%emt 0:00:00]} e6 {[%emt 0:00:23]} 2. c4 {[%emt 0:00:00]} Nf6 {[%emt 0:00:27]} 3. Nc3 {[%emt 0:00:00]} d5 {[%emt 0:00:30]} 4. g3 {[%emt 0:00:13]} dxc4 {[%emt 0:01:48]} 5. Bg2 {[%emt 0:32:56]} Bb4 {[%emt 0:00:31]} 6. Nf3 {[%emt 0:00:00]} c5 {[%emt 0:02:12]} 7. O-O {[%emt 0:00:00]} Nc6 {[%emt 0:06:05]} 8. Ne5 {[%emt 0:00:00]} Nxe5 {[%emt 0:00:30]} 9. dxe5 {[%emt 0:00:00]} Bxc3 {[%emt 0:06:06]} 10. bxc3 {[%emt 0:00:00]} Qxd1 {[%emt 0:00:52]} 11. Rxd1 {[%emt 0:00:00]} Nd5 {[%emt 0:07:44]} 12. Bd2 {[%emt 0:01:25]} Bd7 {[%emt 0:00:30]} 13. e4 {[%emt 0:00:30]} Ne7 {[%emt 0:00:30]} 14. f3 1-0

[Event "O2C Doeberl Cup 2019"]
[Site "Canberra"]
[Date "2019.04.18"]
[Round "1.6"]
[White "Wang, Kayson"]
[Black "Johansen, Darryl K"]
[Result "0-1"]
[ECO "E00"]
[WhiteElo "2020"]
[BlackElo "2364"]
[Annotator "NA"]
[PlyCount "60"]
[EventDate "2019.04.17"]
[EventType "swiss"]
[EventCountry "AUS"]
[SourceTitle "playchess.com"]
[Source "ChessBase"]
[SourceQuality "1"]
[TimeControl "5400+30"]

{[%evp 10,60,43,21,18,18,33,25,41,29,33,27,23,-4,0,-28,-32,-41,7,0,0,0,0,0,0,0,0,0,0,0,0,-20,0,0,0,-8,-14,-25,-23,-25,-23,-16,-17,-16,-22,-37,-23,-31,-34,-27,-26,-50,-27]} 1. d4 {[%emt 0:00:00]} e6 {[%emt 0:00:23]} 2. c4 {[%emt 0:00:00]} Nf6 {[%emt 0:00:30]} 3. g3 {[%emt 0:00:14]} Bb4+ {[%emt 0:00:11]} 4. Bd2 {[%emt 0:00:51]} Qe7 {[%emt 0:00:34]} 5. Bg2 {[%emt 0:04:06]} Nc6 {[%emt 0:00:59]} 6. a3 {[%emt 0:03:00]} Bxd2+ {[%emt 0:00:09] E00: Catalan Bogo-Indian (3 g3 Bb4+)} 7. Qxd2 {[%emt 0:00:08]} O-O {[%emt 0:03:21]} 8. Nc3 {[%emt 0:00:21]} (8. e3 d6 9. Ne2 e5 10. O-O Re8 11. d5 Nb8 12. e4 a5 13. Nbc3 Na6 14. b4 {½-½ (24) Svane,R (2595)-Anand,V (2771) Douglas 2018}) 8... d6 {[%emt 0:00:13] White has an edge.} 9. e3 {[%emt 0:03:33]} e5 {[%emt 0:17:04] next ...exd4 is good for Black.} 10. Nge2 {[%emt 0:02:25]} exd4 $146 {[%emt 0:00:30]} ({Predecessor:} 10... a5 11. O-O e4 12. Nf4 Bf5 13. Ncd5 Nxd5 14. Nxd5 {1-0 (38) Antunes,L (2123)-Piccoli,L (1904) Florianopolis 2017}) 11. exd4 {[%emt 0:03:31]} Na5 {[%emt 0:03:02] Strongly threatening ...Nb3.} 12. Nd5 {[%emt 0:03:22]} Nxd5 {[%emt 0:00:00]} 13. Qxa5 {[%emt 0:02:07]} Nf6 {[%emt 0:02:39]} 14. b3 {[%emt 0:11:02]} c5 15. dxc5 {[%emt 0:03:09]} dxc5 16. Ra2 {[%emt 0:02:15]} b6 17. Qc3 {[%emt 0:03:34]} Bb7 {[%emt 0:00:50]} 18. O-O {[%emt 0:00:29]} Rad8 {[%emt 0:04:24]} 19. Nf4 {[%emt 0:02:38]} Bxg2 {[%emt 0:02:13]} 20. Nxg2 {[%emt 0:07:25]} Qd6 {[%emt 0:09:00]} 21. Re2 {[%emt 0:00:00]} Qd3 {[%emt 0:00:20]} 22. Qxd3 {[%emt 0:00:00]} Rxd3 {[%emt 0:00:10]} 23. Re3 {[%emt 0:00:00]} Rfd8 24. Rfe1 {[%emt 0:07:09]} Kf8 {[%emt 0:06:15]} 25. h3 {[%emt 0:00:00]} Rxe3 {[%emt 0:00:17]} 26. Rxe3 {[%emt 0:00:27]} Rd1+ {[%emt 0:00:33]} 27. Re1 {[%emt 0:02:37]} Rd2 {[%emt 0:02:19]} 28. Re3 {[%emt 0:05:24]} Ra2 {[%emt 0:06:59]} 29. a4 {[%emt 0:00:22]} g5 {[%emt 0:01:15]} 30. Ne1 {[%emt 0:14:24]} Rb2 {[%emt 0:01:58] Accuracy: White = 74%, Black = 68%.} 0-1

[Event "O2C Doeberl Cup 2019"]
[Site "Canberra"]
[Date "2019.04.18"]
[Round "1.7"]
[White "Padmini, Rout"]
[Black "Zhong, Tony"]
[Result "1-0"]
[ECO "A30"]
[WhiteElo "2364"]
[BlackElo "2017"]
[Annotator "NA"]
[PlyCount "50"]
[EventDate "2019.04.17"]
[EventType "swiss"]
[EventCountry "AUS"]
[SourceTitle "playchess.com"]
[Source "ChessBase"]
[SourceQuality "1"]
[TimeControl "5400+30"]

{[%evp 19,50,16,25,16,31,10,15,0,45,0,0,-4,-1,-12,-14,-16,-6,-18,-14,-22,-19,-22,-15,-27,-24,-31,-36,-29,3,1,8,6,8]} 1. Nf3 {[%emt 0:00:00]} Nf6 {[%emt 0:00:00]} 2. g3 {[%emt 0:00:29]} b6 {[%emt 0:00:00]} 3. Bg2 {[%emt 0:00:00]} Bb7 {[%emt 0:00:00]} 4. O-O {[%emt 0:01:42]} c5 {[%emt 0:02:03]} 5. c4 {[%emt 0:00:26]} e6 {[%emt 0:00:00]} 6. b3 {[%emt 0:01:00]} a6 {[%emt 0:03:45]} 7. Bb2 {[%emt 0:01:14]} d6 {[%emt 0:04:04]} 8. d3 {[%emt 0:02:07]} Be7 {[%emt 0:01:56]} 9. Nc3 {[%emt 0:01:36]} O-O {[%emt 0:01:28]} 10. e3 {[%emt 0:00:26]} Nbd7 {[%emt 0:11:37]} 11. Qe2 {[%emt 0:03:25] A30: Symmetrical English: Double Fianchetto and Hedgehog} Rc8 {[%emt 0:03:23]} (11... Re8 12. Rad1 b5 13. Ne1 Bxg2 14. Nxg2 d5 15. g4 g6 16. f4 d4 17. exd4 cxd4 18. Ne4 e5 {0-1 (53) Hambleton,A (2479)-Sargissian,G (2652) Douglas 2017}) 12. h3 $146 {[%emt 0:04:33]} ({Predecessor:} 12. Rad1 Rc7 13. Ne1 Qa8 14. f4 Bxg2 15. Nxg2 d5 16. e4 d4 17. Nb1 e5 18. Nd2 Re8 {½-½ (77) Cuenca Jimenez,J (2506)-Rios,C (2436) Panama City 2017}) 12... Qc7 {[%emt 0:05:07]} 13. e4 {[%emt 0:09:44]} Nb8 {[%emt 0:23:02]} 14. Ne1 {[%emt 0:04:47]} Nc6 {[%emt 0:03:11]} 15. Nc2 {[%emt 0:00:08]} Nd4 {[%emt 0:07:57]} 16. Nxd4 {[%emt 0:00:12]} (16. Qd2 {feels hotter.} Nd7 17. f4 h6 18. Ne3 b5 19. Ne2) 16... cxd4 {[%emt 0:00:05]} 17. Nb1 {[%emt 0:00:07]} e5 {[%emt 0:01:29]} 18. Nd2 {[%emt 0:00:15]} g6 {[%emt 0:03:53]} 19. b4 {[%emt 0:18:01]} Nh5 {[%emt 0:03:45]} 20. Bf3 {[%emt 0:03:59]} Ng7 {[%emt 0:00:17]} 21. Nb3 {[%emt 0:06:28]} a5 {[%emt 0:05:18]} 22. a3 {[%emt 0:00:00]} Ne6 {[%emt 0:03:23]} 23. Bg2 {[%emt 0:00:00]} axb4 {[%emt 0:04:17]} 24. axb4 {[%emt 0:00:00]} Ra8 {[%emt 0:00:00]} 25. f4 {[%emt 0:01:02] Hoping for f5.} Rxa1 {[%emt 0:00:23] Accuracy: White = 38%, Black = 53%.} 1-0

[Event "O2C Doeberl Cup 2019"]
[Site "Canberra"]
[Date "2019.04.18"]
[Round "1.8"]
[White "Prasad, Lalit"]
[Black "Tao, Trevor"]
[Result "0-1"]
[ECO "A04"]
[WhiteElo "2005"]
[BlackElo "2364"]
[Annotator "NA"]
[PlyCount "36"]
[EventDate "2019.04.17"]
[EventType "swiss"]
[EventCountry "AUS"]
[SourceTitle "playchess.com"]
[Source "ChessBase"]
[SourceQuality "1"]
[TimeControl "5400+30"]

{[%evp 9,36,15,33,36,51,28,25,33,44,35,41,-38,-43,-70,-55,-96,-56,-73,-55,-104,-95,-112,-108,-116,-110,-160,-164,-158,-156]} 1. Nf3 {[%emt 1:29:55]} e6 {[%emt 0:00:00]} 2. g3 {[%emt 0:00:00]} b5 {[%emt 0:00:05]} 3. a4 {[%emt 0:00:00]} (3. Bg2 Bb7 4. O-O c5 5. d3 Nf6 6. e4 d6 7. Nfd2 Nc6 8. a4 b4 9. Nc4 Be7 10. Re1 O-O 11. Nbd2 Qc7 12. Nb3 Rad8 13. Bf4 Qc8 14. c3 bxc3 15. bxc3 {1-0 (40) Grischuk,A (2771)-Geller,J (2518) St Petersburg 2018}) 3... b4 {[%emt 0:00:13]} 4. Bg2 {[%emt 0:00:00]} Bb7 {[%emt 0:00:08]} 5. O-O {[%emt 0:00:00]} f5 $146 {[%emt 0:01:59]} ({Predecessor:} 5... Nf6 6. d3 d5 7. a5 Be7 8. c3 Na6 9. Qa4+ c6 10. Bg5 Rb8 11. Nd4 Qd7 12. cxb4 Ba8 13. b5 cxb5 14. Qd1 {1-0 (35) Kurajica,B (2516)-Bistric,F (2346) Sarajevo 2018}) 6. d3 {[%emt 0:00:00] A04: Unusual lines after 1 Nf3 and King's Indian Attack} Nf6 {[%emt 0:00:07]} 7. e4 {[%emt 0:00:00]} fxe4 {[%emt 0:00:53]} 8. Ng5 {[%emt 0:00:00] White has an edge.} Nc6 {[%emt 0:05:36]} 9. a5 Rb8 {[%emt 0:19:35]} 10. Nd2 {[%emt 0:04:38]} ({White should try} 10. a6 $14 Bc8 11. Be3 (11. Nxe4 d5 $11)) 10... exd3 $15 {[%emt 0:00:00]} 11. Nde4 {[%emt 0:00:00]} Be7 {[%emt 0:00:00]} 12. f4 {[%emt 0:00:00]} Nd4 {[%emt 0:00:00]} 13. Qxd3 {[%emt 0:00:00]} Nf5 {[%emt 0:00:00]} 14. Bd2 {[%emt 0:00:00]} O-O {[%emt 0:00:30]} 15. Nxf6+ {[%emt 0:00:00]} gxf6 {[%emt 0:03:09]} 16. Bxb7 {[%emt 0:00:00]} Rxb7 {[%emt 0:00:04]} ({Much worse is} 16... fxg5 $6 17. Bf3 $11) 17. Qe4 {[%emt 0:00:00]} Rb5 {[%emt 0:01:39]} 18. Nf3 {[%emt 0:00:00]} Qa8 {[%emt 0:00:30] Accuracy: White = 35%, Black = 64%.} 0-1

[Event "O2C Doeberl Cup 2019"]
[Site "Canberra"]
[Date "2019.04.18"]
[Round "2.1"]
[White "Lane, Gary W"]
[Black "Melkumyan, Hrant"]
[Result "1/2-1/2"]
[ECO "C07"]
[WhiteElo "2357"]
[BlackElo "2658"]
[Annotator "ChessBase"]
[PlyCount "150"]
[EventDate "2019.04.17"]
[EventType "swiss"]
[EventCountry "AUS"]
[SourceTitle "playchess.com"]
[Source "ChessBase"]
[SourceQuality "1"]
[TimeControl "5400+30"]

1. e4 {[%emt 0:00:00]} e6 {[%emt 0:01:34]} 2. d4 {[%emt 0:00:00]} d5 {[%emt 0:00:08]} 3. Nd2 {[%emt 0:00:00]} c5 {[%emt 0:00:16]} 4. exd5 {[%emt 0:01:36]} Qxd5 {[%emt 0:00:34]} 5. dxc5 {[%emt 0:02:12]} Bxc5 {[%emt 0:00:25]} 6. Ngf3 {[%emt 0:00:07]} Nf6 {[%emt 0:00:23]} 7. Bc4 {[%emt 0:00:07]} Qc6 {[%emt 0:00:12]} 8. Qe2 {[%emt 0:00:27]} O-O {[%emt 0:05:04]} 9. O-O {[%emt 0:00:07]} a6 {[%emt 0:02:02]} 10. a4 {[%emt 0:03:05]} Nbd7 {[%emt 0:08:50]} 11. Nb3 {[%emt 0:10:16]} Bd6 {[%emt 0:03:14]} 12. Nbd4 {[%emt 0:27:32]} Qc7 {[%emt 0:02:07]} 13. Bg5 {[%emt 0:02:00]} Nb6 {[%emt 0:08:15]} 14. Bd3 {[%emt 0:03:27]} Nbd5 {[%emt 0:00:57]} 15. Rfe1 {[%emt 0:01:17]} Bd7 {[%emt 0:07:53]} 16. c3 {[%emt 0:02:12]} h6 {[%emt 0:08:53]} 17. Bxf6 {[%emt 0:03:14]} Nxf6 {[%emt 0:00:29]} 18. Ne5 {[%emt 0:00:30]} Rfd8 {[%emt 0:06:11]} 19. f4 {[%emt 0:03:17]} Bc5 {[%emt 0:00:54]} 20. Bc2 {[%emt 0:02:12]} Be8 {[%emt 0:03:52]} 21. Rad1 {[%emt 0:06:23]} Rac8 {[%emt 0:08:27]} 22. Qf2 {[%emt 0:04:50]} Qb6 {[%emt 0:06:53]} 23. Re2 {[%emt 0:09:14]} Bxd4 {[%emt 0:02:58]} 24. Rxd4 {[%emt 0:03:09]} Rxd4 {[%emt 0:00:10]} 25. Qxd4 {[%emt 0:02:10]} Qxd4+ {[%emt 0:00:16]} 26. cxd4 {[%emt 0:00:02]} Nd5 {[%emt 0:02:20]} 27. g3 {[%emt 0:00:19]} Kf8 {[%emt 0:06:20]} 28. Kf2 {[%emt 0:02:10]} Nb4 {[%emt 0:01:59]} 29. Be4 {[%emt 0:06:42]} Bxa4 {[%emt 0:07:19]} 30. Bxb7 {[%emt 0:00:24]} Rc7 {[%emt 0:01:14]} 31. Be4 {[%emt 0:00:19]} Bb5 {[%emt 0:00:12]} 32. Rd2 {[%emt 0:00:54]} Rc1 {[%emt 0:00:23]} 33. g4 {[%emt 0:01:15]} Rf1+ {[%emt 0:03:33]} 34. Kg3 {[%emt 0:00:08]} Re1 {[%emt 0:00:09]} 35. Kf3 {[%emt 0:01:07]} Ke7 {[%emt 0:01:31]} 36. f5 {[%emt 0:01:53]} Nd5 {[%emt 0:00:21]} 37. Bxd5 {[%emt 0:01:06]} exd5 {[%emt 0:00:03]} 38. Nd3 {[%emt 0:01:41]} Rf1+ {[%emt 0:00:45]} 39. Kg2 {[%emt 0:00:27]} Rb1 {[%emt 0:00:31]} 40. Nf4 {[%emt 0:00:29]} Bc4 {[%emt 0:00:39]} 41. h4 {[%emt 0:00:09]} Re1 {[%emt 0:01:22]} 42. g5 {[%emt 0:00:19]} hxg5 {[%emt 0:00:09]} 43. hxg5 {[%emt 0:00:02]} Kd6 {[%emt 0:01:03]} 44. Nh5 {[%emt 0:01:26]} g6 {[%emt 0:00:29]} 45. fxg6 {[%emt 0:00:04]} fxg6 {[%emt 0:00:02]} 46. Nf4 {[%emt 0:00:06]} Re8 {[%emt 0:00:35]} 47. Kg3 {[%emt 0:00:29]} a5 {[%emt 0:00:51]} 48. Rh2 {[%emt 0:00:24]} Re3+ {[%emt 0:00:21]} 49. Kg4 {[%emt 0:00:57]} Bd3 {[%emt 0:00:11]} 50. Nxd3 {[%emt 0:00:46]} Rxd3 {[%emt 0:00:03]} 51. Rh6 {[%emt 0:00:04]} Rxd4+ {[%emt 0:00:07]} 52. Kf3 {[%emt 0:00:04]} Rd3+ {[%emt 0:00:33]} 53. Kf4 {[%emt 0:00:28]} Rd4+ {[%emt 0:00:03]} 54. Kf3 {[%emt 0:00:04]} Ke5 {[%emt 0:01:29]} 55. Rxg6 {[%emt 0:00:10]} Rf4+ {[%emt 0:00:42]} 56. Ke3 {[%emt 0:00:52]} d4+ {[%emt 0:00:53]} 57. Kd3 {[%emt 0:00:17]} Rf3+ {[%emt 0:00:38]} 58. Kc4 {[%emt 0:00:31]} Rf1 {[%emt 0:00:29]} 59. Ra6 {[%emt 0:00:39]} Rc1+ {[%emt 0:00:31]} 60. Kd3 {[%emt 0:00:14]} Rd1+ {[%emt 0:00:05]} 61. Kc2 {[%emt 0:00:53]} Rg1 {[%emt 0:00:16]} 62. Kd3 {[%emt 0:01:11]} Rg3+ {[%emt 0:00:07]} 63. Kc4 {[%emt 0:00:17]} Rg1 {[%emt 0:00:24]} 64. Kd3 {[%emt 0:00:09]} Rd1+ {[%emt 0:01:02]} 65. Kc2 {[%emt 0:00:16]} Rh1 {[%emt 0:00:15]} 66. Kd3 {[%emt 0:00:26]} Rh3+ {[%emt 0:00:05]} 67. Kc4 {[%emt 0:00:12]} Rh2 {[%emt 0:01:04]} 68. Kd3 {[%emt 0:00:47]} Rh3+ {[%emt 0:00:33]} 69. Kc4 {[%emt 0:00:05]} Rh1 {[%emt 0:00:22]} 70. Ra8 {[%emt 0:00:59]} Rc1+ {[%emt 0:00:19]} 71. Kd3 {[%emt 0:00:07]} Rd1+ {[%emt 0:00:05]} 72. Kc2 {[%emt 0:00:16]} Rg1 {[%emt 0:00:32]} 73. Kd3 {[%emt 0:00:08]} Rd1+ {[%emt 0:00:56]} 74. Kc2 {[%emt 0:00:06]} Rg1 {[%emt 0:00:03]} 75. Kd3 {[%emt 0:00:06]} Rd1+ {[%emt 0:00:06]} 1/2-1/2

[Event "O2C Doeberl Cup 2019"]
[Site "Canberra"]
[Date "2019.04.18"]
[Round "2.2"]
[White "Smirnov, Anton"]
[Black "Solomon, Stephen J"]
[Result "1-0"]
[ECO "E06"]
[WhiteElo "2567"]
[BlackElo "2338"]
[Annotator "ChessBase"]
[PlyCount "135"]
[EventDate "2019.04.17"]
[EventType "swiss"]
[EventCountry "AUS"]
[SourceTitle "playchess.com"]
[Source "ChessBase"]
[SourceQuality "1"]
[TimeControl "5400+30"]

1. d4 {[%emt 0:03:41]} d5 {[%emt 0:00:23]} 2. c4 {[%emt 0:01:30]} e6 {[%emt 0:00:15]} 3. Nf3 {[%emt 0:00:06]} Nf6 {[%emt 0:01:18]} 4. Nc3 {[%emt 0:00:07]} Be7 {[%emt 0:00:47]} 5. g3 {[%emt 0:00:07]} O-O {[%emt 0:01:23]} 6. Bg2 {[%emt 0:00:11]} dxc4 {[%emt 0:00:38]} 7. Ne5 {[%emt 0:00:15]} c5 {[%emt 0:00:55]} 8. dxc5 {[%emt 0:00:06]} Qxd1+ {[%emt 0:00:33]} 9. Nxd1 {[%emt 0:00:09]} Bxc5 {[%emt 0:00:25]} 10. Nc3 {[%emt 0:00:06]} Nc6 {[%emt 0:08:12]} 11. Nxc4 {[%emt 0:00:10]} Bd7 {[%emt 0:01:37]} 12. O-O {[%emt 0:00:31]} Rac8 {[%emt 0:06:44]} 13. Bf4 {[%emt 0:07:49]} Rfd8 {[%emt 0:01:58]} 14. Rfd1 {[%emt 0:00:18]} e5 {[%emt 0:15:12]} 15. Bg5 {[%emt 0:22:43]} h6 {[%emt 0:06:52]} 16. Bxf6 {[%emt 0:02:09]} gxf6 {[%emt 0:00:11]} 17. Nd6 {[%emt 0:00:12]} Bxd6 {[%emt 0:02:13]} 18. Rxd6 {[%emt 0:00:03]} Be6 {[%emt 0:06:37]} 19. Rad1 {[%emt 0:05:21]} Rxd6 {[%emt 0:19:01]} 20. Rxd6 {[%emt 0:00:03]} Kf8 {[%emt 0:08:06]} 21. Bxc6 {[%emt 0:09:16]} bxc6 {[%emt 0:01:28]} 22. Rd2 {[%emt 0:02:04]} Ke7 {[%emt 0:00:36]} 23. e3 {[%emt 0:03:42]} f5 {[%emt 0:01:25]} 24. f4 {[%emt 0:00:19]} f6 {[%emt 0:00:13]} 25. Kg2 {[%emt 0:07:56]} h5 {[%emt 0:01:08]} 26. Kh3 {[%emt 0:02:32]} c5 {[%emt 0:05:26]} 27. Kh4 {[%emt 0:01:35]} e4 {[%emt 0:00:36]} 28. a3 {[%emt 0:02:05]} Rb8 {[%emt 0:06:12]} 29. Na4 {[%emt 0:02:37]} Rc8 {[%emt 0:00:12]} 30. Rc2 {[%emt 0:06:55]} Bb3 {[%emt 0:01:09]} 31. Rxc5 {[%emt 0:00:30]} Rxc5 {[%emt 0:00:10]} 32. Nxc5 {[%emt 0:00:19]} Bd1 {[%emt 0:00:07]} 33. g4 {[%emt 0:07:32]} hxg4 {[%emt 0:00:55]} 34. Nb7 {[%emt 0:00:07]} Ke6 {[%emt 0:01:40]} 35. Na5 {[%emt 0:00:13]} Kd5 {[%emt 0:00:23]} 36. b4 {[%emt 0:00:01]} a6 {[%emt 0:00:15]} 37. Kg3 {[%emt 0:00:35]} Bc2 {[%emt 0:02:32]} 38. Kf2 {[%emt 0:00:05]} Bd3 {[%emt 0:00:19]} 39. Ke1 {[%emt 0:00:20]} Ke6 {[%emt 0:00:04]} 40. Nb3 {[%emt 0:01:49]} Kf7 {[%emt 0:00:51]} 41. Nd4 {[%emt 0:00:40]} Kg6 {[%emt 0:00:13]} 42. Kf2 {[%emt 0:00:35]} Bb5 {[%emt 0:00:13]} 43. Ne2 {[%emt 0:00:51]} Kf7 {[%emt 0:00:36]} 44. Nc3 {[%emt 0:01:47]} Bc4 {[%emt 0:00:22]} 45. Kg2 {[%emt 0:00:15]} Ke6 {[%emt 0:00:21]} 46. h4 {[%emt 0:01:21]} gxh3+ {[%emt 0:00:09]} 47. Kxh3 {[%emt 0:00:06]} Kd6 {[%emt 0:00:22]} 48. Kg3 {[%emt 0:00:16]} Kc6 {[%emt 0:00:10]} 49. Kf2 {[%emt 0:00:08]} Kb6 {[%emt 0:02:08]} 50. Ke1 {[%emt 0:00:05]} a5 {[%emt 0:00:41]} 51. Kd2 {[%emt 0:00:13]} axb4 {[%emt 0:00:03]} 52. axb4 {[%emt 0:00:10]} Kc6 {[%emt 0:00:26]} 53. Kc2 {[%emt 0:00:41]} Kb6 {[%emt 0:00:14]} 54. Kb2 {[%emt 0:00:11]} Kc6 {[%emt 0:00:43]} 55. Ka3 {[%emt 0:00:07]} Kb6 {[%emt 0:00:13]} 56. Ka4 {[%emt 0:00:04]} Be6 {[%emt 0:00:36]} 57. Ne2 {[%emt 0:00:13]} Bd7+ {[%emt 0:01:27]} 58. Kb3 {[%emt 0:00:02]} Be6+ {[%emt 0:00:03]} 59. Kc3 {[%emt 0:00:10]} Bc8 {[%emt 0:00:11]} 60. Nd4 {[%emt 0:00:12]} Kc7 {[%emt 0:00:08]} 61. Kc4 {[%emt 0:00:30]} Kd6 {[%emt 0:00:12]} 62. Nb5+ {[%emt 0:01:37]} Ke7 {[%emt 0:01:08]} 63. Kc5 {[%emt 0:00:07]} Ba6 {[%emt 0:00:07]} 64. Nd4 {[%emt 0:00:09]} Bd3 {[%emt 0:00:17]} 65. Kc6 {[%emt 0:00:08]} Kd8 {[%emt 0:00:10]} 66. Nxf5 {[%emt 0:00:20]} Kc8 {[%emt 0:00:16]} 67. Ne7+ {[%emt 0:00:07]} Kb8 {[%emt 0:00:01]} 68. Nd5 {[%emt 0:00:06]} 1-0

[Event "O2C Doeberl Cup 2019"]
[Site "Canberra"]
[Date "2019.04.18"]
[Round "2.3"]
[White "Song, Raymond"]
[Black "Sengupta, Deep"]
[Result "1/2-1/2"]
[ECO "B15"]
[WhiteElo "2329"]
[BlackElo "2551"]
[Annotator "ChessBase"]
[PlyCount "156"]
[EventDate "2019.04.17"]
[EventType "swiss"]
[EventCountry "AUS"]
[SourceTitle "playchess.com"]
[Source "ChessBase"]
[SourceQuality "1"]
[TimeControl "5400+30"]

1. e4 {[%emt 0:00:00]} c6 {[%emt 0:00:00]} 2. d4 {[%emt 0:00:00]} d5 {[%emt 0:00:00]} 3. Nd2 {[%emt 0:00:00]} dxe4 {[%emt 0:00:00]} 4. Nxe4 {[%emt 0:00:00]} Nf6 {[%emt 0:00:00]} 5. Nxf6+ {[%emt 0:00:00]} exf6 {[%emt 0:00:00]} 6. c3 {[%emt 0:00:00]} Bd6 {[%emt 0:00:00]} 7. Bd3 {[%emt 0:00:00]} O-O {[%emt 0:00:24]} 8. Qc2 {[%emt 0:00:01]} Re8+ {[%emt 0:00:03]} 9. Ne2 {[%emt 0:00:06]} h5 {[%emt 0:00:03]} 10. O-O {[%emt 0:00:05]} h4 {[%emt 0:00:06]} 11. Bf4 {[%emt 0:00:05]} Be6 {[%emt 0:11:16]} 12. h3 {[%emt 0:02:01]} Qc7 {[%emt 0:01:09]} 13. Qd2 {[%emt 0:00:36]} Nd7 {[%emt 0:01:11]} 14. Bxd6 {[%emt 0:09:45]} Qxd6 {[%emt 0:00:06]} 15. Qf4 {[%emt 0:00:04]} Qxf4 {[%emt 0:00:33]} 16. Nxf4 {[%emt 0:00:04]} Nb6 {[%emt 0:04:42]} 17. Rfe1 {[%emt 0:01:16]} Bc4 {[%emt 0:16:39]} 18. Bxc4 {[%emt 0:02:31]} Nxc4 {[%emt 0:00:05]} 19. Nd3 {[%emt 0:02:22]} f5 {[%emt 0:02:01]} 20. b3 {[%emt 0:08:32]} Na3 {[%emt 0:12:37]} 21. Kf1 {[%emt 0:00:56]} Nb5 {[%emt 0:05:15]} 22. Rac1 {[%emt 0:00:32]} f6 {[%emt 0:00:56]} 23. a4 {[%emt 0:02:21]} Nd6 {[%emt 0:00:06]} 24. f3 {[%emt 0:05:15]} g5 {[%emt 0:01:54]} 25. Rxe8+ {[%emt 0:00:05]} Rxe8 {[%emt 0:00:06]} 26. Re1 {[%emt 0:00:03]} Kf7 {[%emt 0:02:29]} 27. Rxe8 {[%emt 0:00:06]} Kxe8 {[%emt 0:00:01]} 28. Ke2 {[%emt 0:00:19]} f4 {[%emt 0:00:40]} 29. Ne1 {[%emt 0:00:34]} Nf5 {[%emt 0:00:50]} 30. Nc2 {[%emt 0:00:18]} Kd7 {[%emt 0:00:05]} 31. Kd3 {[%emt 0:00:26]} Ng3 {[%emt 0:07:31]} 32. b4 {[%emt 0:04:07]} Nf1 {[%emt 0:06:01]} 33. Ke2 {[%emt 0:00:49]} Ng3+ {[%emt 0:00:05]} 34. Kd3 {[%emt 0:00:02]} Nf1 {[%emt 0:00:12]} 35. c4 {[%emt 0:01:58]} Ke6 {[%emt 0:01:43]} 36. b5 {[%emt 0:05:10]} Kd7 {[%emt 0:02:59]} 37. c5 {[%emt 0:01:16]} f5 {[%emt 0:08:07]} 38. bxc6+ {[%emt 0:09:58]} bxc6 {[%emt 0:00:05]} 39. a5 {[%emt 0:00:03]} Kc7 {[%emt 0:04:30]} 40. a6 {[%emt 0:00:19]} Kd7 {[%emt 0:00:05]} 41. Ke2 {[%emt 0:01:06]} Ng3+ {[%emt 0:00:04]} 42. Kd2 {[%emt 0:07:12]} Nf1+ {[%emt 0:01:53]} 43. Kd3 {[%emt 0:00:16]} Kc7 {[%emt 0:00:04]} 44. Ke2 {[%emt 0:00:46]} Ng3+ {[%emt 0:00:02]} 45. Ke1 {[%emt 0:00:24]} Nh5 {[%emt 0:00:06]} 46. Nb4 {[%emt 0:00:53]} Ng7 {[%emt 0:00:57]} 47. Kd2 {[%emt 0:08:25]} Ne6 {[%emt 0:00:05]} 48. Kc3 {[%emt 0:01:10]} g4 {[%emt 0:00:32]} 49. d5 {[%emt 0:05:23]} gxh3 {[%emt 0:06:00]} 50. gxh3 {[%emt 0:00:10]} cxd5 {[%emt 0:02:09]} 51. Nxd5+ {[%emt 0:00:05]} Kc6 {[%emt 0:03:26]} 52. Kc4 {[%emt 0:00:05]} Nxc5 {[%emt 0:04:15]} 53. Ne7+ {[%emt 0:00:10]} Kb6 {[%emt 0:00:01]} 54. Nc8+ {[%emt 0:01:03]} Kc7 {[%emt 0:00:01]} 55. Kxc5 {[%emt 0:00:41]} Kxc8 {[%emt 0:00:01]} 56. Kd6 {[%emt 0:00:06]} Kd8 {[%emt 0:00:07]} 57. Ke5 {[%emt 0:00:05]} Kc7 {[%emt 0:00:02]} 58. Kxf5 {[%emt 0:03:44]} Kb6 {[%emt 0:00:02]} 59. Kxf4 {[%emt 0:00:07]} Kxa6 {[%emt 0:00:01]} 60. Kg5 {[%emt 0:00:10]} Kb5 {[%emt 0:00:20]} 61. f4 {[%emt 0:00:06]} a5 {[%emt 0:00:25]} 62. f5 {[%emt 0:00:04]} a4 {[%emt 0:00:02]} 63. f6 {[%emt 0:00:04]} a3 {[%emt 0:00:03]} 64. f7 {[%emt 0:00:02]} a2 {[%emt 0:00:04]} 65. f8=Q {[%emt 0:00:01]} a1=Q {[%emt 0:00:07]} 66. Qf5+ {[%emt 0:00:33]} Kc6 {[%emt 0:01:17]} 67. Kxh4 {[%emt 0:00:06]} Kd6 {[%emt 0:00:02]} 68. Kg5 {[%emt 0:00:11]} Ke7 {[%emt 0:00:57]} 69. Kg6 {[%emt 0:00:31]} Qa6+ {[%emt 0:02:07]} 70. Kh7 {[%emt 0:01:16]} Qf6 {[%emt 0:00:55]} 71. Qg4 {[%emt 0:00:02]} Qf7+ {[%emt 0:01:07]} 72. Qg7 {[%emt 0:00:30]} Ke6 {[%emt 0:00:02]} 73. Qxf7+ {[%emt 0:01:30]} Kxf7 {[%emt 0:00:01]} 74. h4 {[%emt 0:00:05]} Kf8 {[%emt 0:00:05]} 75. h5 {[%emt 0:00:02]} Kf7 {[%emt 0:00:03]} 76. h6 {[%emt 0:00:03]} Kf8 {[%emt 0:00:03]} 77. Kh8 {[%emt 0:00:03]} Kf7 {[%emt 0:00:02]} 78. h7 {[%emt 0:00:03]} Kf8 {[%emt 0:00:03]} 1/2-1/2